[Event "44th Chess Olympiad Women 2022"]
[Site "Chennai"]
[Date "2022.08.05"]
[Round "7.20"]
[White "Mariroh, Fariha"]
[Black "Guillen Cristobal, Sandra N"]
[Result "1/2-1/2"]
[WhiteElo "1839"]
[BlackElo "1962"]
[Annotator "NA RC"]
[PlyCount "121"]
[EventDate "2022.??.??"]
[TimeControl "60"]

1. e4 {[%emt 0:00:11]} c5 {[%emt 0:00:08]} 2. Nf3 {[%emt 0:00:00]} Nc6 {
[%emt 0:00:08]} 3. d4 {[%emt 0:00:04]} cxd4 {[%emt 0:00:06]} 4. Nxd4 {[%emt 0:
00:00]} g6 {[%emt 0:00:06]} 5. c4 {[%emt 0:00:07]} Bg7 {[%emt 0:00:05]} 6. Be3
{[%emt 0:00:10]} Nf6 {[%emt 0:00:09]} 7. Nc3 {[%emt 0:00:05]} O-O {[%emt 0:00:
00]} 8. Be2 {[%emt 0:00:23]} d6 {[%emt 0:00:09]} 9. O-O {[%emt 0:00:25]} Bd7 {
[%emt 0:00:06]} 10. Qd2 {[%emt 0:03:20]} Nxd4 {[%emt 0:00:18]} 11. Bxd4 {
[%emt 0:00:08]} Bc6 {[%emt 0:00:05]} 12. f3 {[%emt 0:00:14]} a5 {[%emt 0:00:08]
} 13. b3 {[%emt 0:00:45]} Nd7 {[%emt 0:00:59]} 14. Bf2 {[%emt 0:01:02]} Nc5 {
[%emt 0:02:33]} 15. Rab1 {[%emt 0:00:40]} Be5 {[%emt 0:06:35]} 16. Bd1 {
[%emt 0:02:32]} e6 {[%emt 0:01:10]} 17. Bc2 {[%emt 0:01:12]} Qf6 {[%emt 0:00:
00]} 18. Ne2 {[%emt 0:04:29]} Qe7 {[%emt 0:12:26]} 19. Nd4 {[%emt 0:12:08]}
Rfd8 {[%emt 0:01:37]} 20. Rfe1 {[%emt 0:08:56]} g5 {[%emt 0:06:57]} 21. Be3 {
[%emt 0:10:35]} f6 {[%emt 0:08:22]} 22. a3 {[%emt 0:05:41]} Qf7 {[%emt 0:12:00]
} 23. Qf2 {[%emt 0:08:41]} Be8 {[%emt 0:05:31]} 24. Kh1 {[%emt 0:04:09]} Qe7 {
[%emt 0:06:48]} 25. g3 {[%emt 0:07:38]} Bg6 {[%emt 0:01:06]} 26. Nb5 {[%emt 0:
00:00]} Be8 {[%emt 0:21:23]} 27. f4 {[%emt 0:01:33]} Bxb5 {[%emt 0:00:24]} 28.
fxe5 {[%emt 0:00:24]} Bc6 {[%emt 0:00:29]} 29. Bxc5 {[%emt 0:03:52]} dxc5 {
[%emt 0:00:10]} 30. exf6 {[%emt 0:00:24]} Qd6 {[%emt 0:02:41]} 31. Kg1 {
[%emt 0:09:08]} Qe5 {[%emt 0:00:47]} 32. Rbd1 {[%emt 0:01:59]} Rf8 {[%emt 0:00:
00]} 33. Rf1 {[%emt 0:00:22]} Rf7 {[%emt 0:00:19]} 34. Qe3 {[%emt 0:06:25]}
Raf8 {[%emt 0:00:45]} 35. Bd3 {[%emt 0:01:05]} Rxf6 {[%emt 0:00:39]} 36. Rxf6 {
[%emt 0:00:09]} Rxf6 {[%emt 0:00:05]} 37. Bc2 {[%emt 0:01:07]} Rf8 {[%emt 0:00:
00]} 38. Qd2 {[%emt 0:00:17]} Kg7 {[%emt 0:02:57]} 39. Qxa5 {[%emt 0:00:56]}
Rf7 {[%emt 0:02:14]} 40. Qd8 {[%emt 0:01:23]} h6 {[%emt 0:00:14]} 41. Qd6 {
[%emt 0:31:08]} Qc3 {[%emt 0:31:07]} 42. Qd3 {[%emt 0:00:32]} Qe5 {[%emt 0:00:
00]} 43. Rf1 {[%emt 0:00:00]} Rxf1+ {[%emt 0:00:00]} 44. Kxf1 {[%emt 0:00:00]}
h5 {[%emt 0:00:00]} 45. b4 {[%emt 0:00:00]} cxb4 {[%emt 0:00:00]} 46. axb4 {
[%emt 0:00:00]} b5 {[%emt 0:00:00]} 47. c5 {[%emt 0:00:00]} h4 {[%emt 0:00:00]}
48. Ke2 {[%emt 0:00:00]} hxg3 {[%emt 0:00:00]} 49. hxg3 {[%emt 0:00:00]} Qb2 {
[%emt 0:00:00]} 50. Qd2 {[%emt 0:00:00]} Qe5 {[%emt 0:00:00]} 51. Qe3 {[%emt 0:
00:00]} Be8 {[%emt 0:00:00]} 52. Kd2 {[%emt 0:00:00]} Kf6 {[%emt 0:00:00]} 53.
Qf3+ {[%emt 0:00:00]} Ke7 {[%emt 0:00:06]} 54. Qc3 {[%emt 0:00:00]} Kf6 {
[%emt 0:01:30]} 55. Qd3 {[%emt 0:00:00]} Ke7 {[%emt 0:01:19]} 56. Qa3 {[%emt 0:
00:00]} Qd4+ {[%emt 0:00:51]} 57. Kc1 {[%emt 0:00:06]} Kf6 {[%emt 0:02:02]} 58.
Qf3+ {[%emt 0:01:28]} Ke7 {[%emt 0:00:32]} 59. Qa3 {[%emt 0:01:29]} Kf6 {
[%emt 0:00:11]} 60. Qf3+ {[%emt 0:00:32]} Ke7 {[%emt 0:00:31]} 61. Qa3 {
[%emt 0:01:07]} 1/2-1/2

[Event "44th Chess Olympiad Women 2022"]
[Site "Chennai"]
[Date "2022.08.05"]
[Round "7.20"]
[White "Sukandar, Irine Kharisma"]
[Black "Corrales Jimenez, Zenia"]
[Result "1/2-1/2"]
[WhiteElo "2373"]
[BlackElo "2143"]
[Annotator "TA"]
[PlyCount "88"]
[EventDate "2022.??.??"]
[TimeControl "60"]

{[%evp 22,88,18,29,27,21,27,11,12,26,91,99,100,84,93,87,90,88,88,20,8,16,11,-6,
-8,-5,0,-3,0,0,0,0,0,0,0,0,0,0,0,0,0,0,0,0,50,50,211,211,194,56,56,56,56,0,0,0,
0,0,0,0,0,0,0,0,0,0,0,0,0]} 1. e4 {[%emt 0:00:18]} c5 {[%emt 0:00:12]} 2. Nf3 {
[%emt 0:00:24]} d6 {[%emt 0:00:38]} 3. d4 {[%emt 0:00:39]} cxd4 {[%emt 0:00:18]
} 4. Nxd4 {[%emt 0:00:07]} Nf6 {[%emt 0:00:35]} 5. Nc3 {[%emt 0:00:06]} g6 {
[%emt 0:00:37]} 6. Be3 {[%emt 0:02:37]} Bg7 {[%emt 0:00:21]} 7. f3 {[%emt 0:00:
00]} O-O {[%emt 0:00:40]} 8. Qd2 {[%emt 0:00:18]} Nc6 {[%emt 0:00:12][%cal
Yb8c6,Yc6e5,Ye5f3]} 9. g4 {[%emt 0:03:25]} Be6 {[%emt 0:03:03]} 10. Nxe6 {
[%emt 0:04:07]} fxe6 {[%emt 0:00:05]} 11. O-O-O {[%emt 0:04:25]} Ne5 {[%emt 0:
05:25]} 12. Be2 {[%emt 0:03:22]} Qc8 {[%emt 0:00:18] B76: Sicilian Dragon:
Yugoslav Attack, 9 g4 and 9 0-0-0.} 13. h4 {[%emt 0:11:53][%cal Yh2h4,Yh4h5]
Threatens to win with h5.} Nfd7 {[%emt 0:05:56]} 14. h5 {[%emt 0:10:46]} Nxf3 {
[%emt 0:29:48] Pair of Knights!} 15. Nd5 {[%emt 0:02:15]} exd5 {[%emt 0:11:59]}
(15... Nxd2 $11 {keeps the balance.} 16. Nxe7+ Kf7 17. Nxc8 Raxc8 18. Bxd2 Kg8)
16. Qxd5+ $16 {[%emt 0:00:54]} Rf7 {[%emt 0:00:05] [#] aiming for ...Nde5.} (
16... Kh8 $2 17. hxg6 Nf6 18. Rxh7+ Nxh7 19. Qh5 $18) 17. hxg6 {[%emt 0:06:12]
The board is on fire.} hxg6 {[%emt 0:00:05]} 18. Bxf3 {[%emt 0:00:46]} Ne5 {
[%emt 0:02:32]} 19. Be2 {[%emt 0:01:30] White is more active.} Qc6 {[%emt 0:03:
07] [#]} 20. Bd4 $146 {[%emt 0:11:06]} (20. c3 $16) ({Predecessor:} 20. Qxc6
bxc6 21. g5 c5 22. Rh4 Rb8 23. c3 Kf8 24. Rdh1 Ke8 25. Rh7 Kd7 26. a4 {1-0 (36)
Thybo,J (2464)-Winiarski,M (2269) Rymanow Zdroj 2017}) 20... Qxd5 $11 {[%emt 0:
09:32]} 21. exd5 {[%emt 0:00:05]} Rf4 {[%emt 0:00:10]} 22. Bxe5 {[%emt 0:06:11]
} Bxe5 {[%emt 0:00:47]} 23. Rdf1 {[%emt 0:02:27]} Rxf1+ {[%emt 0:05:17]} 24.
Rxf1 {[%emt 0:00:19]} Rf8 {[%emt 0:00:05]} 25. Rxf8+ {[%emt 0:01:00]} Kxf8 {
[%emt 0:00:06] Endgame KB-KB} 26. Bb5 {[%emt 0:00:54]} Kf7 {[%emt 0:04:55]} 27.
Bd7 {[%emt 0:00:20]} Kf6 {[%emt 0:00:00]} 28. c3 {[%emt 0:01:50]} Bf4+ {
[%emt 0:03:22]} 29. Kc2 {[%emt 0:04:54]} Ke5 {[%emt 0:00:07]} 30. Be6 {[%emt 0:
00:49]} a5 {[%emt 0:01:05]} 31. Kd3 {[%emt 0:00:00]} g5 {[%emt 0:05:16]} 32.
Kc4 {[%emt 0:00:59] And now a4 would win.} Bc1 {[%emt 0:02:18]} (32... a4 $1
$11) 33. b4 $1 $14 {[%emt 0:07:23]} axb4 $2 {[%emt 0:05:03]} (33... a4 $1 $14)
34. cxb4 $18 {[%emt 0:00:06] Black must now prevent a4.} Ba3 {[%emt 0:00:19] 
[#]} 35. Kb3 {[%emt 0:04:27]} (35. Bd7 $1 $18) 35... Bc1 $14 {[%emt 0:00:02]}
36. a4 $1 {[%emt 0:00:11]} b5 $1 {[%emt 0:01:53]} 37. axb5 {[%emt 0:01:13]} (
37. a5 $14) 37... Be3 $11 {[%emt 0:00:05] The position is equal.} 38. b6 {
[%emt 0:00:19]} Bxb6 {[%emt 0:00:05]} 39. Kc4 {[%emt 0:00:06] Kb5 would kill
now.} Bf2 {[%emt 0:01:17]} 40. Kb5 {[%emt 0:00:00] Intending Kc6 and mate.} Be1
$1 {[%emt 0:00:07]} 41. Ka4 {[%emt 0:31:40] Strongly threatening b5.} Kd4 {
[%emt 0:31:05]} 42. Kb3 $1 {[%emt 0:00:00]} Bd2 {[%emt 0:00:00]} 43. Bf7 {
[%emt 0:00:00]} Be1 {[%emt 0:00:00]} 44. Be6 {[%emt 0:00:00]} Bd2 {[%emt 0:00:
00] Weighted Error Value: White=0.17 (very precise) /Black=0.14 (very precise)}
1/2-1/2

[Event "44th Chess Olympiad Women 2022"]
[Site "Chennai"]
[Date "2022.08.05"]
[Round "7.21"]
[White "Agrest, Inna"]
[Black "Liu, Yang Hazel"]
[Result "1-0"]
[WhiteElo "2217"]
[BlackElo "2046"]
[Annotator "TA"]
[PlyCount "143"]
[EventDate "2022.??.??"]
[TimeControl "60"]

{[%evp 19,143,16,10,-21,-10,-13,0,-10,5,3,4,-11,-14,-10,18,11,14,6,6,0,72,69,
63,56,60,0,7,11,11,10,30,24,57,62,63,54,51,58,79,62,122,111,173,64,65,68,244,
20,15,0,0,0,0,0,7,7,86,0,87,79,95,95,95,95,95,95,95,87,88,87,88,88,95,88,88,87,
87,62,118,115,124,91,91,91,91,91,95,94,94,27,52,0,94,94,94,94,299,94,94,94,94,
94,94,94,94,91,94,0,94,94,94,85,117,84,1241,1117,29983,29984,29981,29982,29986,
29986,29990,29985,29987,29987]} 1. e4 {[%emt 0:00:05] Rogozenco,D} c5 {[%emt 0:
00:00]} 2. Nf3 {[%emt 0:00:07]} Nc6 {[%emt 0:00:22]} 3. d4 {[%emt 0:00:20]}
cxd4 {[%emt 0:00:07]} 4. Nxd4 {[%emt 0:00:04]} Nf6 {[%emt 0:00:11]} 5. Nc3 {
[%emt 0:00:13]} e5 {[%emt 0:00:12]} 6. Ndb5 {[%emt 0:00:38]} d6 {[%emt 0:00:08]
} 7. Bg5 {[%emt 0:01:41]} a6 {[%emt 0:00:14]} 8. Na3 {[%emt 0:00:36]} b5 {
[%emt 0:00:08]} 9. Nd5 {[%emt 0:01:19]} Be7 {[%emt 0:00:45]} 10. Nxe7 {[%emt 0:
00:00]} Nxe7 {[%emt 0:00:56]} 11. Qd3 {[%emt 0:03:25] B33: Sicilian: Pelikan
and Sveshnikov Variations.} d5 {[%emt 0:12:24]} 12. exd5 {[%emt 0:00:34] [#]}
Nexd5 $146 {[%emt 0:09:27]} ({Predecessor:} 12... Bf5 13. Qb3 Qxd5 14. Qxd5
Nexd5 15. c4 bxc4 16. Bxc4 O-O 17. O-O Nb4 18. Rfe1 Rfe8 19. Rad1 Ne4 20. Be3
Rac8 21. f3 Nf6 22. Re2 Be6 23. b3 e4 24. Rdd2 {½-½ (24) Anand,V (2786)-Leko,
P (2749) Linares 2005 CBM 106 [Rogozenco,D]}) 13. Rd1 {[%emt 0:12:15] The
position is equal.} Bb7 {[%emt 0:10:52]} 14. Be2 {[%emt 0:08:50]} O-O {[%emt 0:
00:00]} 15. O-O {[%emt 0:02:55]} h6 {[%emt 0:01:42]} 16. Bc1 {[%emt 0:00:39]}
Qc7 {[%emt 0:09:59]} 17. c4 $1 {[%emt 0:01:48]} bxc4 {[%emt 0:02:21]} 18. Nxc4
{[%emt 0:02:55]} Rfd8 {[%emt 0:10:27]} 19. Qa3 {[%emt 0:04:32]} Ne7 {[%emt 0:
00:00]} (19... a5 $11) 20. Qa5 {[%emt 0:07:53]} Qxa5 {[%emt 0:04:42]} 21. Nxa5
{[%emt 0:00:03]} Bd5 {[%emt 0:00:38]} 22. b4 {[%emt 0:07:11]} (22. b3 $14)
22... Bxa2 {[%emt 0:05:09]} 23. Rxd8+ {[%emt 0:00:32]} Rxd8 {[%emt 0:00:02]}
24. Bxa6 {[%emt 0:05:07]} Rd4 {[%emt 0:04:55]} 25. Ba3 {[%emt 0:00:00]} Nfd5 {
[%emt 0:05:18]} 26. Ra1 {[%emt 0:02:39]} Rd2 {[%emt 0:01:04]} 27. Bf1 {[%emt 0:
00:00] A strong pair of Bishops.} Nc3 {[%emt 0:01:01]} 28. b5 {[%emt 0:05:19]}
Ned5 {[%emt 0:00:19]} 29. Re1 {[%emt 0:06:05]} e4 {[%emt 0:01:49]} (29... f6
$14) 30. Nc6 $16 {[%emt 0:01:56]} Bb3 {[%emt 0:01:28] [#]} (30... f6 $16) 31.
Ne7+ {[%emt 0:06:14]} (31. b6 $1 $18 {[%cal Rb6b7] Threatens to win with b7.}
Nxb6 32. Re3) 31... Nxe7 $14 {[%emt 0:03:03]} 32. Bxe7 {[%emt 0:00:02] And now
Bb4 would win.} Ba4 $2 {[%emt 0:00:51]} ({Better is} 32... Rc2 $14) 33. b6 $2 {
[%emt 0:07:13]} (33. Bb4 $18 Rc2 34. Bxc3 Rxc3 35. Ra1 (35. Rxe4 Bd1 $18) 35...
Bxb5 36. Bxb5) 33... Rb2 $11 {[%emt 0:00:31]} 34. Bd8 {[%emt 0:01:38]} Bb5 {
[%emt 0:02:02]} 35. Bxb5 {[%emt 0:03:51]} Rxb5 {[%emt 0:00:04] Endgame KRB-KRN}
36. h3 {[%emt 0:00:10]} Nd5 {[%emt 0:01:38]} 37. Rxe4 {[%emt 0:00:32]} Nxb6 {
[%emt 0:00:09]} (37... Kf8 $11) 38. Re8+ $16 {[%emt 0:00:00]} Kh7 {[%emt 0:00:
02]} 39. Re7 {[%emt 0:00:13] Rb7 is the strong threat.} Rb1+ {[%emt 0:01:06]}
40. Kh2 {[%emt 0:00:04]} Nd5 {[%emt 0:00:53]} 41. Rxf7 {[%emt 0:04:35]} Kg6 {
[%emt 0:02:25]} 42. Rd7 {[%emt 0:05:28]} Rb5 {[%emt 0:00:00]} 43. Bh4 {[%emt 0:
00:39]} Nf6 {[%emt 0:04:21]} 44. Ra7 {[%emt 0:00:58]} Rh5 {[%emt 0:01:13]} 45.
Ra4 {[%emt 0:02:06]} Re5 {[%emt 0:01:46]} 46. Ra6 {[%emt 0:01:41]} Re2 {
[%emt 0:03:07]} 47. g4 {[%emt 0:05:14]} Kf7 {[%emt 0:00:00]} 48. Kg2 {[%emt 0:
00:18]} Nd5 {[%emt 0:07:29]} ({Black should try} 48... g5 $14) 49. Ra7+ {
[%emt 0:01:20]} Kg6 {[%emt 0:00:19]} 50. Bg3 {[%emt 0:00:17]} Nf6 {[%emt 0:04:
40]} 51. Kf3 {[%emt 0:01:28]} Rc2 {[%emt 0:01:24]} 52. Be5 {[%emt 0:03:08]} Rc5
{[%emt 0:00:38]} 53. Ba1 {[%emt 0:01:47]} h5 {[%emt 0:00:00]} 54. Bd4 {[%emt 0:
05:39]} (54. Kg3 $16) 54... Rc4 {[%emt 0:00:47]} 55. Ba1 {[%emt 0:00:26][%cal
Yg4g5]} Rc5 {[%emt 0:01:29]} 56. Kg3 {[%emt 0:00:42] Hoping for f4.} hxg4 {
[%emt 0:01:38]} 57. hxg4 {[%emt 0:00:05] Strongly threatening f4.} Rc4 {
[%emt 0:02:26] [#]} (57... Rc1 $16 {keeps fighting.}) 58. f3 $2 {[%emt 0:00:12]
} (58. f4 $1 $18 {and the rest is easy.}) 58... Rc1 {[%emt 0:02:24]} 59. Bd4 {
[%emt 0:01:37]} Rc4 {[%emt 0:00:00]} 60. Bb2 {[%emt 0:00:00] White is more
active.} Rc2 {[%emt 0:00:00]} 61. Rb7 {[%emt 0:00:19]} Rd2 {[%emt 0:00:13]} 62.
Ba1 {[%emt 0:02:31]} Rd1 {[%emt 0:00:23]} 63. Ra7 {[%emt 0:00:12]} (63. Bc3 $16
) 63... Rd2 {[%emt 0:00:31]} (63... Rc1 $1 $11) 64. Ra6 {[%emt 0:00:15]} Rd5 {
[%emt 0:02:34]} 65. f4 {[%emt 0:02:29][%cal Yf3f4,Yf4f5] aiming for g5.} Kf7 {
[%emt 0:00:23]} 66. g5 {[%emt 0:00:29][%cal Yg4g5,Yg5g6]} Nd7 $2 {[%emt 0:00:
45]} (66... Ne4+ $16 67. Kg4 g6) 67. g6+ $18 {[%emt 0:00:46]} Kg8 {[%emt 0:00:
35]} 68. Ra8+ {[%emt 0:00:23] White mates.} Nf8 {[%emt 0:00:02]} 69. Kg4 {
[%emt 0:00:13]} Rd6 {[%emt 0:00:13]} 70. f5 {[%emt 0:01:26]} Rb6 {[%emt 0:00:
46]} 71. Ra7 {[%emt 0:00:00]} Rb4+ {[%emt 0:00:37]} 72. Kg5 {[%emt 0:00:13]
Weighted Error Value: White=0.22 (precise) /Black=0.23 (precise)} 1-0

[Event "44th Chess Olympiad Women 2022"]
[Site "Chennai"]
[Date "2022.08.05"]
[Round "7.21"]
[White "Hng, Mei-Xian Eunice"]
[Black "Cramling Bellon, Anna"]
[Result "0-1"]
[WhiteElo "1823"]
[BlackElo "2065"]
[Annotator "NA RC"]
[PlyCount "128"]
[EventDate "2022.??.??"]
[TimeControl "60"]

1. e4 {[%emt 0:00:59]} c5 {[%emt 0:00:04]} 2. d4 {[%emt 0:00:23]} cxd4 {
[%emt 0:00:19]} 3. c3 {[%emt 0:00:15]} Nf6 {[%emt 0:00:13]} 4. e5 {[%emt 0:00:
00]} Nd5 {[%emt 0:00:18]} 5. Qxd4 {[%emt 0:00:12]} e6 {[%emt 0:00:30]} 6. Bd3 {
[%emt 0:00:44]} Nc6 {[%emt 0:03:08]} 7. Qe4 {[%emt 0:00:22]} f5 {[%emt 0:04:21]
} 8. exf6 {[%emt 0:00:20]} Nxf6 {[%emt 0:00:07]} 9. Qh4 {[%emt 0:00:03]} Ne5 {
[%emt 0:04:30]} 10. Bc2 {[%emt 0:03:29]} d5 {[%emt 0:02:57]} 11. Bg5 {[%emt 0:
00:00]} Bd6 {[%emt 0:08:29]} 12. Nd2 {[%emt 0:03:59]} h6 {[%emt 0:09:58]} 13.
Ngf3 {[%emt 0:14:06]} Nf7 {[%emt 0:15:06]} 14. Bg6 {[%emt 0:09:19]} O-O {
[%emt 0:01:03]} 15. Be3 {[%emt 0:01:08]} e5 {[%emt 0:01:22]} 16. O-O {[%emt 0:
00:00]} Nh8 {[%emt 0:08:11]} 17. Bc2 {[%emt 0:02:07]} e4 {[%emt 0:00:49]} 18.
Nxe4 {[%emt 0:03:55]} Nxe4 {[%emt 0:07:20]} 19. Bxe4 {[%emt 0:00:45]} dxe4 {
[%emt 0:05:53]} 20. Qxe4 {[%emt 0:00:14]} Re8 {[%emt 0:10:18]} 21. Qd5+ {
[%emt 0:01:24]} Be6 {[%emt 0:00:06]} 22. Qxb7 {[%emt 0:01:45]} Rb8 {[%emt 0:00:
00]} 23. Qxa7 {[%emt 0:01:06]} Bd5 {[%emt 0:00:11]} 24. Nd2 {[%emt 0:06:52]}
Bxh2+ {[%emt 0:09:19]} 25. Kxh2 {[%emt 0:03:38]} Qh4+ {[%emt 0:00:05]} 26. Kg1
{[%emt 0:00:04]} Bxg2 {[%emt 0:00:13]} 27. Kxg2 {[%emt 0:01:12]} Qg4+ {[%emt 0:
00:00]} 28. Kh2 {[%emt 0:00:43]} Rb5 {[%emt 0:00:49]} 29. Bc5 {[%emt 0:05:39]}
Re5 {[%emt 0:00:48]} 30. Qa8+ {[%emt 0:01:29]} Kh7 {[%emt 0:00:07]} 31. Qg2 {
[%emt 0:01:07]} Qf4+ {[%emt 0:02:02]} 32. Qg3 {[%emt 0:00:17]} Rh5+ {[%emt 0:
00:00]} 33. Kg2 {[%emt 0:00:17]} Rg5 {[%emt 0:00:10]} 34. Nf3 {[%emt 0:01:00]}
Rxg3+ {[%emt 0:01:38]} 35. fxg3 {[%emt 0:00:05]} Rxb2+ {[%emt 0:00:12]} 36. Rf2
{[%emt 0:03:53]} Rxf2+ {[%emt 0:00:19]} 37. Kxf2 {[%emt 0:00:37]} Qf5 {[%emt 0:
00:00]} 38. Bd4 {[%emt 0:00:55]} Nf7 {[%emt 0:00:12]} 39. Rf1 {[%emt 0:02:39]}
Ng5 {[%emt 0:00:36]} 40. Ke2 {[%emt 0:03:29]} Qe4+ {[%emt 0:00:56]} 41. Be3 {
[%emt 0:30:41]} Qc4+ {[%emt 0:05:13]} 42. Ke1 {[%emt 0:00:00]} Qxc3+ {[%emt 0:
00:00]} 43. Ke2 {[%emt 0:00:00]} Qc4+ {[%emt 0:05:02]} 44. Ke1 {[%emt 0:00:00]}
Ne4 {[%emt 0:01:01]} 45. Bf4 {[%emt 0:00:00]} g5 {[%emt 0:08:09]} 46. Be5 {
[%emt 0:00:00]} g4 {[%emt 0:01:12]} 47. Bf4 {[%emt 0:00:00]} gxf3 {[%emt 0:00:
00]} 48. Rxf3 {[%emt 0:00:00]} Qxa2 {[%emt 0:01:19]} 49. Kf1 {[%emt 0:00:00]}
Qc2 {[%emt 0:05:49]} 50. Be3 {[%emt 0:00:00]} Qd1+ {[%emt 0:02:17]} 51. Kg2 {
[%emt 0:00:00]} Qe2+ {[%emt 0:00:10]} 52. Bf2 {[%emt 0:00:00]} Kg6 {[%emt 0:00:
00]} 53. Rf4 {[%emt 0:00:00]} Kg5 {[%emt 0:00:26]} 54. Rf3 {[%emt 0:00:00]}
Nxf2 {[%emt 0:01:35]} 55. Rxf2 {[%emt 0:00:00]} Qe4+ {[%emt 0:00:05]} 56. Kh2 {
[%emt 0:00:00]} h5 {[%emt 0:00:42]} 57. Rf8 {[%emt 0:00:00]} Qc2+ {[%emt 0:00:
00]} 58. Kh3 {[%emt 0:00:00]} Qc4 {[%emt 0:00:32]} 59. Rf4 {[%emt 0:00:00]} Qe2
{[%emt 0:00:08]} 60. Rf8 {[%emt 0:00:00]} Qe1 {[%emt 0:00:38]} 61. Rg8+ {
[%emt 0:00:00]} Kh6 {[%emt 0:00:22]} 62. Rh8+ {[%emt 0:00:00]} Kg6 {[%emt 0:00:
00]} 63. Rg8+ {[%emt 0:00:00]} Kh7 {[%emt 0:00:13]} 64. Rg5 {[%emt 0:00:00]}
Qh1# {[%emt 0:00:08]} 0-1

[Event "44th Chess Olympiad Women 2022"]
[Site "Chennai"]
[Date "2022.08.05"]
[Round "7.21"]
[White "Hng, Mei-En Emmanuelle"]
[Black "Cramling, Pia"]
[Result "0-1"]
[WhiteElo "1997"]
[BlackElo "2459"]
[Annotator "ChessBase"]
[PlyCount "66"]
[EventDate "2022.??.??"]
[TimeControl "60"]

1. e4 {[%emt 0:00:23]} c5 {[%emt 0:00:11]} 2. d4 {[%emt 0:00:20]} cxd4 {
[%emt 0:00:37]} 3. c3 {[%emt 0:00:12]} Nf6 {[%emt 0:01:22]} 4. e5 {[%emt 0:00:
00]} Nd5 {[%emt 0:00:06]} 5. Qxd4 {[%emt 0:00:14]} e6 {[%emt 0:01:11]} 6. Bd3 {
[%emt 0:00:38]} Nc6 {[%emt 0:06:32]} 7. Qe4 {[%emt 0:00:23]} Qc7 {[%emt 0:00:
00]} 8. Nf3 {[%emt 0:02:56]} Ncb4 {[%emt 0:05:56]} 9. O-O {[%emt 0:11:41]} f5 {
[%emt 0:07:32]} 10. exf6 {[%emt 0:00:55]} Nxf6 {[%emt 0:00:10]} 11. Qe2 {
[%emt 0:01:45]} Nxd3 {[%emt 0:00:11]} 12. Qxd3 {[%emt 0:00:08]} b6 {[%emt 0:00:
00]} 13. Re1 {[%emt 0:12:19]} Bb7 {[%emt 0:02:53]} 14. c4 {[%emt 0:06:07]} Be7
{[%emt 0:05:34]} 15. Nc3 {[%emt 0:01:28]} O-O {[%emt 0:04:38]} 16. Nb5 {
[%emt 0:04:56]} Qc6 {[%emt 0:10:47]} 17. Bd2 {[%emt 0:11:43]} a6 {[%emt 0:00:
00]} 18. Nbd4 {[%emt 0:04:37]} Qc7 {[%emt 0:01:47]} 19. Rad1 {[%emt 0:11:57]}
Rae8 {[%emt 0:13:46]} 20. Bg5 {[%emt 0:07:45]} Bc5 {[%emt 0:02:58]} 21. Bxf6 {
[%emt 0:05:57]} Rxf6 {[%emt 0:03:31]} 22. Ng5 {[%emt 0:00:16]} Rh6 {[%emt 0:00:
00]} 23. Ndf3 {[%emt 0:01:31]} Bc6 {[%emt 0:00:13]} 24. a3 {[%emt 0:02:58]} a5
{[%emt 0:01:00]} 25. h3 {[%emt 0:05:41]} Rf8 {[%emt 0:00:26]} 26. Re2 {[%emt 0:
00:00]} Rg6 {[%emt 0:05:02]} 27. h4 {[%emt 0:02:10]} Bxf3 {[%emt 0:03:04]} 28.
Nxf3 {[%emt 0:01:59]} Qg3 {[%emt 0:00:15]} 29. Ng5 {[%emt 0:00:39]} Bxf2+ {
[%emt 0:00:17]} 30. Kh1 {[%emt 0:00:11]} Qxh4+ {[%emt 0:00:19]} 31. Nh3 {
[%emt 0:00:08]} Rg3 {[%emt 0:01:18]} 32. Rxf2 {[%emt 0:01:02]} Rxf2 {[%emt 0:
00:00]} 33. Qd6 {[%emt 0:00:29]} Rxh3+ {[%emt 0:00:17]} 0-1